fUSD/lending_fUSD_20250107
["ID","MTS","AMOUNT","RATE_DAILY","PERIOD"]
[348002002,1736263881290,-152.0,0.00011631,3]
[348002003,1736263881301,-151.0,0.00011632,2]
[348002004,1736263881310,-150.0,0.00011645,2]
[348002005,1736263881320,-150.0,0.00011646,2]
[348002006,1736263881329,-150.0,0.00011651,2]
[348002007,1736263881339,-150.0,0.00011667,2]
[348002008,1736263881349,-150.0,0.0001173,2]
[348002009,1736263881359,-502.94,0.00011767,2]
[348002010,1736263881368,-1588.59169286,0.00011769,2]
[348002011,1736263881381,-150.0,0.00011771,2]
[348002012,1736263881390,-150.0,0.00011775,2]
[348002013,1736263881399,-17591.72010835,0.00011779,2]
[348002014,1736263881409,-4515.55,0.00011781,2]
[348002015,1736263881419,-1828.4,0.00011781,2]
[348002016,1736263881429,-5701.5,0.00011781,2]
[348002017,1736263881439,-3083.97,0.00011781,2]
[348002018,1736263881449,-5138.6,0.00011781,2]
[348002019,1736263881458,-16018.72,0.00011781,2]
[348002020,1736263881468,-830.06,0.00011781,2]
[348002021,1736263881479,-1787.15,0.00011781,2]
[348002022,1736263881489,-5133.87,0.00011781,2]
[348002023,1736263881499,-2801.75,0.00011781,2]
[348002024,1736263881511,-8554.94,0.00011781,2]
[348002025,1736263881520,-4563.86,0.00011781,2]
[348002026,1736263881530,-1496.82,0.00011781,2]
[348002027,1736263881539,-860.4,0.00011781,2]
[348002028,1736263881550,-4689.52,0.00011781,2]
[348002029,1736263881560,-2860.17,0.00011781,2]
[348002030,1736263881569,-944.74,0.00011781,2]
[348002031,1736263881579,-7170.94,0.00011781,2]
[348002032,1736263881589,-9213.36,0.00011781,2]
[348002033,1736263881599,-540.9,0.00011781,2]
[348002034,1736263881609,-824.76,0.00011781,2]
[348002035,1736263881618,-500.0,0.00011781,2]
[348002036,1736263881630,-3420.5,0.00011781,2]
[348002037,1736263881639,-874.68,0.00011781,2]
[348002038,1736263881649,-664.73,0.00011781,2]
[348002039,1736263881659,-792.91,0.00011781,2]
[348002040,1736263881668,-912.97,0.00011781,2]
[348002041,1736263881678,-43914.17245884,0.00011782,2]
[348002042,1736263881687,-152.0,0.00011796,4]
[348002043,1736263881697,-2430.43954953,0.00011799,2]
[348002044,1736263881707,-200.0,0.000118,2]
[348002045,1736263881716,-150.0,0.00011839,2]
[348002046,1736263881726,-659.88451732,0.00011857,2]
[348002047,1736263881735,-108197.46997529,0.00011879,2]
[348002048,1736263881744,-150.0,0.00011879,2]
[348002049,1736263881754,-10447.61013027,0.0001188,2]
[348002050,1736263881763,-1965.62,0.00011882,2]
[348002051,1736263881773,-1441.85,0.00011882,2]
[348002052,1736263881783,-2031.12,0.00011882,2]
[348002053,1736263881793,-584.14,0.00011882,2]
[348002054,1736263881802,-1347.38,0.00011882,2]
[348002055,1736263881812,-1337.9,0.00011882,2]
[348002056,1736263881821,-234.94412144,0.00011882,2]
[348002057,1736263881831,-726.31,0.00011882,2]
[348002058,1736263881840,-617.27,0.00011882,2]
[348002059,1736263881850,-1113.64,0.00011882,2]
[348002060,1736263881859,-519.08,0.00011882,2]
[348002061,1736263881868,-682.82,0.00011882,2]
[348002062,1736263881881,-767.32,0.00011882,2]
[348002063,1736263881891,-1790.9,0.00011882,2]
[348002064,1736263881901,-1842.07,0.00011882,2]
[348002065,1736263881910,-2333.72,0.00011882,2]
[348002066,1736263881921,-1453.48,0.00011882,2]
[348002067,1736263881932,-782.9,0.00011882,2]
[348002068,1736263881942,-1135.22,0.00011882,2]
[348002069,1736263881952,-500.0,0.00011882,2]
[348002070,1736263881961,-908.06,0.00011882,2]
[348002071,1736263881971,-925.35,0.00011882,2]
[348002072,1736263881981,-877.63,0.00011882,2]
[348002073,1736263881991,-579.05,0.00011882,2]
[348002074,1736263882000,-795.6,0.00011882,2]
[348002075,1736263882010,-1845.34,0.00011882,2]
[348002076,1736263882020,-2158.61,0.00011882,2]
[348002077,1736263882030,-714.94,0.00011882,2]
[348002078,1736263882039,-1826.77,0.00011882,2]
[348002079,1736263882049,-849.05,0.00011882,2]
[348002080,1736263882059,-636.08,0.00011882,2]
[348002081,1736263882069,-1120.62,0.00011882,2]
[348002082,1736263882078,-1088.41,0.00011882,2]
[348002083,1736263882088,-1554.61,0.00011882,2]
[348002084,1736263882097,-1217.44,0.00011882,2]
[348002085,1736263882107,-3453.96,0.00011882,2]
[348002086,1736263882116,-870.05,0.00011882,2]
[348002087,1736263882126,-672.55,0.00011882,2]
[348002088,1736263882138,-1595.12,0.00011882,2]
[348002089,1736263882147,-739.47,0.00011882,2]
[348002090,1736263882157,-1563.31,0.00011882,2]
[348002091,1736263882167,-500.0,0.00011882,2]
[348002092,1736263882176,-996.09,0.00011882,2]
[348002093,1736263882186,-1557.7,0.00011882,2]
[348002094,1736263882196,-883.86,0.00011882,2]
[348002095,1736263882207,-765.55,0.00011882,2]
[348002096,1736263882216,-500.0,0.00011882,2]
[348002097,1736263882226,-724.56,0.00011882,2]
[348002098,1736263882236,-2608.4,0.00011882,2]
[348002099,1736263882246,-1221.39,0.00011882,2]
[348002100,1736263882256,-500.0,0.00011882,2]
[348002101,1736263882265,-500.0,0.00011882,2]
[348002102,1736263882276,-824.39,0.00011882,2]
[348002103,1736263882286,-575.2,0.00011882,2]
[348002104,1736263882296,-731.88,0.00011882,2]
[348002105,1736263882306,-500.0,0.00011882,2]
[348002106,1736263882315,-500.0,0.00011882,2]
[348002107,1736263882325,-856.3,0.00011882,2]
[348002108,1736263882334,-1460.43,0.00011882,2]
[348002109,1736263882344,-3613.69,0.00011882,2]
[348002110,1736263882354,-500.0,0.00011882,2]
[348002111,1736263882364,-991.0,0.00011882,2]
[348002112,1736263882374,-500.0,0.00011882,2]
[348002113,1736263882387,-841.81,0.00011882,2]
[348002114,1736263882397,-1442.72,0.00011882,2]
[348002115,1736263882407,-1892.87,0.00011882,2]
[348002116,1736263882416,-774.17,0.00011882,2]
[348002117,1736263882426,-907.31,0.00011882,2]
[348002118,1736263882436,-513.49,0.00011882,2]
[348002119,1736263882446,-672.45,0.00011882,2]
[348002120,1736263882456,-3237.55,0.00011882,2]
[348002121,1736263882466,-752.65,0.00011882,2]
[348002122,1736263882476,-5673.89,0.00011882,2]
[348002123,1736263882486,-1344.94,0.00011882,2]
[348002124,1736263882495,-881.2,0.00011882,2]
[348002125,1736263882504,-2241.45,0.00011882,2]
[348002126,1736263882514,-500.0,0.00011882,2]
[348002127,1736263882523,-279.05658229,0.00011882,2]
[348002128,1736263882533,-1777.72,0.00011882,2]
[348002129,1736263882543,-1459.14,0.00011882,2]
[348002130,1736263882553,-731.55,0.00011882,2]
[348002131,1736263882563,-599.79,0.00011882,2]
[348002132,1736263882573,-678.26,0.00011882,2]
[348002133,1736263882583,-810.17,0.00011882,2]
[348002134,1736263882593,-7213.42,0.00011882,2]
[348002135,1736263882602,-1859.3,0.00011882,2]
[348002136,1736263882611,-518.99,0.00011882,2]
[348002137,1736263882621,-500.0,0.00011882,2]
[348002138,1736263882634,-857.54,0.00011882,2]
[348002139,1736263882646,-982.74,0.00011882,2]
[348002140,1736263882656,-1950.14,0.00011882,2]
[348002141,1736263882666,-1868.88,0.00011882,2]
[348002142,1736263882677,-1684.02,0.00011882,2]
[348002143,1736263882687,-1374.84,0.00011882,2]
[348002144,1736263882697,-6155.23,0.00011882,2]
[348002145,1736263882706,-527.17,0.00011882,2]
[348002146,1736263882715,-617.1,0.00011882,2]
[348002147,1736263882725,-960.41,0.00011882,2]
[348002148,1736263882735,-616.31,0.00011882,2]
[348002149,1736263882745,-500.0,0.00011882,2]
[348002150,1736263882754,-500.0,0.00011882,2]
[348002151,1736263882764,-821.48,0.00011882,2]
[348002152,1736263882774,-707.3,0.00011882,2]
[348002153,1736263882783,-1175.09,0.00011882,2]
[348002154,1736263882793,-2127.0,0.00011882,2]
[348002155,1736263882803,-732.27,0.00011882,2]
[348002156,1736263882812,-1326.01,0.00011882,2]
[348002157,1736263882822,-1159.97,0.00011882,2]
[348002158,1736263882832,-992.99,0.00011882,2]
[348002159,1736263882842,-990.18,0.00011882,2]
[348002160,1736263882853,-1210.53,0.00011882,2]
[348002161,1736263882863,-2494.45,0.00011882,2]
[348002162,1736263882873,-2494.45,0.00011882,2]
[348002163,1736263882888,-749.09,0.00011882,2]
[348002164,1736263882898,-591.84,0.00011882,2]
[348002165,1736263882907,-577.66,0.00011882,2]
[348002166,1736263882918,-712.92,0.00011882,2]
[348002167,1736263882928,-978.74,0.00011882,2]
[348002168,1736263882938,-1565.79,0.00011882,2]
[348002169,1736263882949,-1011.75,0.00011882,2]
[348002170,1736263882959,-1806.6,0.00011882,2]
[348002171,1736263882969,-838.31,0.00011882,2]
[348002172,1736263882979,-621.15,0.00011882,2]
[348002173,1736263882989,-1397.55,0.00011882,2]
[348002174,1736263882999,-2941.9,0.00011882,2]
[348002175,1736263883009,-1429.25,0.00011882,2]
[348002176,1736263883019,-500.0,0.00011882,2]
[348002177,1736263883029,-1154.68,0.00011882,2]
[348002178,1736263883039,-524.95,0.00011882,2]
[348002179,1736263883050,-902.1,0.00011882,2]
[348002180,1736263883060,-765.88,0.00011882,2]
[348002181,1736263883071,-686.62,0.00011882,2]
[348002182,1736263883081,-1845.75,0.00011882,2]
[348002183,1736263883152,-1842.45,0.00011882,2]
[348002184,1736263883162,-1551.13,0.00011882,2]
[348002185,1736263883173,-798.85,0.00011882,2]
[348002186,1736263883183,-7573.87,0.00011882,2]
[348002187,1736263883193,-1030.35,0.00011882,2]
[348002188,1736263883203,-512.79,0.00011882,2]
[348002189,1736263883215,-818.81,0.00011882,2]
[348002190,1736263883226,-1425.05,0.00011882,2]
[348002191,1736263883235,-1084.42,0.00011882,2]
[348002192,1736263883247,-1500.25,0.00011882,2]
[348002193,1736263883257,-942.4,0.00011882,2]
[348002194,1736263883267,-500.0,0.00011882,2]
[348002195,1736263883277,-7527.44,0.00011882,2]
[348002196,1736263883289,-650.14,0.00011882,2]
[348002197,1736263883299,-1350.85,0.00011882,2]
[348002198,1736263883309,-3410.6,0.00011882,2]
[348002199,1736263883319,-1276.15,0.00011882,2]
[348002200,1736263883328,-932.71,0.00011882,2]
[348002201,1736263883338,-1746.81,0.00011882,2]
[348002202,1736263883347,-500.0,0.00011882,2]
[348002203,1736263883357,-958.49,0.00011882,2]
[348002204,1736263883367,-1669.23,0.00011882,2]
[348002205,1736263883378,-1546.58,0.00011882,2]
[348002206,1736263883393,-500.0,0.00011882,2]
[348002207,1736263883403,-972.03,0.00011882,2]
[348002208,1736263883414,-984.81,0.00011882,2]
[348002209,1736263883424,-1410.46,0.00011882,2]
[348002210,1736263883434,-589.38,0.00011882,2]
[348002211,1736263883444,-739.84,0.00011882,2]
[348002212,1736263883454,-500.0,0.00011882,2]
[348002213,1736263883464,-1204.56,0.00011882,2]
[348002214,1736263883474,-888.08,0.00011882,2]
[348002215,1736263883483,-500.0,0.00011882,2]
[348002216,1736263883492,-1988.71,0.00011882,2]
[348002217,1736263883502,-500.0,0.00011882,2]
[348002218,1736263883512,-500.0,0.00011882,2]
[348002219,1736263883521,-500.0,0.00011882,2]
[348002220,1736263883531,-773.36,0.00011882,2]
[348002221,1736263883541,-928.03,0.00011882,2]
[348002222,1736263883551,-2541.66,0.00011882,2]
[348002223,1736263883561,-500.0,0.00011882,2]
[348002224,1736263883571,-500.0,0.00011883,2]
[348002225,1736263883580,-556.89,0.00011883,2]
[348002226,1736263883589,-500.0,0.00011883,2]
[348002227,1736263883598,-610.77,0.00011883,2]
[348002228,1736263883608,-632.11,0.00011883,2]
[348002229,1736263883618,-720.43,0.00011883,2]
[348002230,1736263883627,-565.46,0.00011883,2]
[348002231,1736263883641,-500.0,0.00011883,2]
[348002232,1736263883651,-500.0,0.00011883,2]
[348002233,1736263883660,-712.94,0.00011883,2]
[348002234,1736263883670,-500.0,0.00011883,2]
[348002235,1736263883680,-549.28,0.00011883,2]
[348002236,1736263883689,-500.0,0.00011883,2]
[348002237,1736263883698,-805.41,0.00011883,2]
[348002238,1736263883708,-500.0,0.00011883,2]
[348002239,1736263883717,-500.0,0.00011883,2]
[348002240,1736263883727,-664.53,0.00011883,2]
[348002241,1736263883737,-500.0,0.00011883,2]
[348002242,1736263883747,-571.58,0.00011883,2]
[348002243,1736263883757,-599.27,0.00011883,2]
[348002244,1736263883768,-500.0,0.00011883,2]
[348002245,1736263883779,-734.19,0.00011883,2]
[348002246,1736263883789,-388.95350364,0.00011883,2]
[348002247,1736263883798,-500.0,0.00011883,2]
[348002248,1736263883815,-500.0,0.00011883,2]
[348002249,1736263883825,-671.16,0.00011883,2]
[348002250,1736263883840,-525.37,0.00011883,2]
[348002251,1736263883850,-500.0,0.00011883,2]
[348002252,1736263883861,-500.0,0.00011883,2]
[348002253,1736263883871,-500.0,0.00011883,2]
[348002254,1736263883885,-765.69,0.00011883,2]
[348002255,1736263883896,-500.0,0.00011883,2]
[348002256,1736263883906,-500.0,0.00011883,2]
[348002257,1736263883917,-473.75265495,0.00011883,2]
[348002258,1736263883927,-520.28,0.00011883,2]
[348002259,1736263883937,-566.99,0.00011883,2]
[348002260,1736263883947,-573.98,0.00011883,2]
[348002261,1736263883957,-524.42,0.00011883,2]
[348002262,1736263883967,-509.08,0.00011883,2]
[348002263,1736263883977,-534.75,0.00011883,2]
[348002264,1736263883987,-906.3,0.00011883,2]
[348002265,1736263883997,-500.0,0.00011883,2]
[348002266,1736263884007,-500.0,0.00011883,2]
[348002267,1736263884017,-508.55,0.00011883,2]
[348002268,1736263884027,-500.0,0.00011883,2]
[348002269,1736263884037,-500.0,0.00011883,2]
[348002270,1736263884047,-571.55,0.00011883,2]
[348002271,1736263884057,-884.36,0.00011883,2]
[348002272,1736263884067,-500.0,0.00011883,2]
[348002273,1736263884076,-500.0,0.00011883,2]
[348002274,1736263884086,-852.43,0.00011883,2]
[348002275,1736263884097,-500.0,0.00011883,2]
[348002276,1736263884107,-500.0,0.00011883,2]
[348002277,1736263884117,-548.31,0.00011883,2]
[348002278,1736263884126,-500.0,0.00011883,2]
[348002279,1736263884139,-568.64,0.00011883,2]
[348002280,1736263884148,-500.0,0.00011883,2]
[348002281,1736263884158,-500.0,0.00011883,2]
[348002282,1736263884168,-500.0,0.00011883,2]
[348002283,1736263884179,-516.55,0.00011883,2]
[348002284,1736263884189,-500.0,0.00011883,2]
[348002285,1736263884204,-500.0,0.00011883,2]
[348002286,1736263884213,-500.0,0.00011883,2]
[348002287,1736263884223,-500.0,0.00011883,2]
[348002288,1736263884234,-599.41,0.00011883,2]
[348002289,1736263884245,-811.0,0.00011883,2]
[348002290,1736263884255,-500.0,0.00011883,2]
[348002291,1736263884266,-368.69617253,0.00011883,2]
[348002292,1736263884278,-991.0,0.00011883,2]
[348002293,1736263884289,-500.0,0.00011883,2]
[348002294,1736263884300,-500.0,0.00011883,2]
[348002295,1736263884310,-550.06,0.00011883,2]
[348002296,1736263884321,-597.15,0.00011883,2]
[348002297,1736263884332,-620.73,0.00011883,2]
[348002298,1736263884343,-778.27,0.00011883,2]
[348002299,1736263884353,-500.0,0.00011883,2]
[348002300,1736263884365,-564.27,0.00011883,2]
[348002301,1736263884376,-500.0,0.00011883,2]
[348002302,1736263884392,-523.85,0.00011883,2]
[348002303,1736263884402,-503.12,0.00011883,2]
[348002304,1736263884412,-513.18,0.00011883,2]
[348002305,1736263884422,-500.0,0.00011883,2]
[348002306,1736263884431,-531.76,0.00011883,2]
[348002307,1736263884443,-561.53,0.00011883,2]
[348002308,1736263884455,-570.52,0.00011883,2]
[348002309,1736263884466,-2075.27,0.00011883,2]
[348002310,1736263884477,-500.0,0.00011883,2]
[348002311,1736263884488,-500.0,0.00011883,2]
[348002312,1736263884499,-381.15370108,0.00011883,2]
[348002313,1736263884509,-500.0,0.00011883,2]
[348002314,1736263884520,-1754.46,0.00011883,2]
[348002315,1736263884531,-500.0,0.00011883,2]
[348002316,1736263884541,-500.0,0.00011883,2]
[348002317,1736263884551,-500.0,0.00011883,2]
[348002318,1736263884561,-500.0,0.00011883,2]
[348002319,1736263884572,-557.43,0.00011883,2]
[348002320,1736263884582,-500.0,0.00011883,2]
[348002321,1736263884592,-500.0,0.00011883,2]
[348002322,1736263884602,-588.14,0.00011883,2]
[348002323,1736263884612,-500.0,0.00011883,2]
[348002324,1736263884622,-548.77,0.00011883,2]
[348002325,1736263884635,-656.79,0.00011883,2]
[348002326,1736263884645,-555.13,0.00011883,2]
[348002327,1736263884659,-575.23,0.00011883,2]
[348002328,1736263884679,-500.0,0.00011883,2]
[348002329,1736263884690,-500.0,0.00011883,2]
[348002330,1736263884699,-500.0,0.00011883,2]
[348002331,1736263884709,-1047.1,0.00011883,2]
[348002332,1736263884719,-619.43,0.00011883,2]
[348002333,1736263884729,-567.84,0.00011883,2]
[348002334,1736263884739,-514.55,0.00011883,2]
[348002335,1736263884749,-500.0,0.00011883,2]
[348002336,1736263884759,-834.65,0.00011883,2]
[348002337,1736263884769,-731.55,0.00011883,2]
[348002338,1736263884779,-580.77,0.00011883,2]
[348002339,1736263884788,-500.0,0.00011883,2]
[348002340,1736263884798,-655.93,0.00011883,2]
[348002341,1736263884808,-500.0,0.00011883,2]
[348002342,1736263884818,-500.0,0.00011883,2]
[348002343,1736263884828,-837.41,0.00011883,2]
[348002344,1736263884838,-500.0,0.00011883,2]
[348002345,1736263884848,-500.0,0.00011883,2]
[348002346,1736263884857,-751.57,0.00011883,2]
[348002347,1736263884867,-553.46,0.00011883,2]
[348002348,1736263884877,-1406.87,0.00011883,2]
[348002349,1736263884890,-908.17,0.00011883,2]
[348002350,1736263884900,-621.0,0.00011883,2]
[348002351,1736263884910,-1446.51,0.00011883,2]
[348002352,1736263884923,-549.99,0.00011883,2]
[348002353,1736263884934,-981.24,0.00011883,2]
[348002354,1736263884945,-500.0,0.00011883,2]
[348002355,1736263884955,-1988.67,0.00011883,2]
[348002356,1736263884965,-500.0,0.00011883,2]
[348002357,1736263884976,-741.68,0.00011883,2]
[348002358,1736263884986,-616.1,0.00011883,2]
[348002359,1736263884996,-500.0,0.00011883,2]
[348002360,1736263885005,-500.0,0.00011883,2]
[348002361,1736263885015,-863.83,0.00011883,2]
[348002362,1736263885024,-500.0,0.00011883,2]
[348002363,1736263885034,-500.0,0.00011883,2]
[348002364,1736263885043,-782.39,0.00011883,2]
[348002365,1736263885053,-649.32,0.00011883,2]
[348002366,1736263885063,-579.24,0.00011883,2]
[348002367,1736263885073,-1155.68,0.00011883,2]
[348002368,1736263885084,-500.0,0.00011883,2]
[348002369,1736263885094,-820.77,0.00011883,2]
[348002370,1736263885103,-500.0,0.00011883,2]
[348002371,1736263885114,-1040.81,0.00011883,2]
[348002372,1736263885124,-726.45,0.00011883,2]
[348002373,1736263885137,-805.89,0.00011883,2]
[348002374,1736263885147,-500.0,0.00011883,2]
[348002375,1736263885157,-527.55,0.00011883,2]
[348002376,1736263885167,-1107.87,0.00011883,2]
[348002377,1736263885177,-1785.31,0.00011883,2]
[348002378,1736263885187,-500.0,0.00011883,2]
[348002379,1736263885198,-690.17,0.00011883,2]
[348002380,1736263885207,-875.02,0.00011883,2]
[348002381,1736263885221,-2268.04,0.00011883,2]
[348002382,1736263885232,-614.67,0.00011883,2]
[348002383,1736263885242,-500.0,0.00011883,2]
[348002384,1736263885252,-500.0,0.00011883,2]
[348002385,1736263885262,-556.86,0.00011883,2]
[348002386,1736263885272,-1180.53,0.00011883,2]
[348002387,1736263885283,-500.0,0.00011883,2]
[348002388,1736263885295,-500.0,0.00011883,2]
[348002389,1736263885306,-633.16,0.00011883,2]
[348002390,1736263885317,-776.12,0.00011883,2]
[348002391,1736263885327,-500.0,0.00011883,2]
[348002392,1736263885337,-578.66,0.00011883,2]
[348002393,1736263885349,-771.34,0.00011883,2]
[348002394,1736263885359,-500.0,0.00011883,2]
[348002395,1736263885370,-1479.16,0.00011883,2]
[348002396,1736263885384,-612.39,0.00011883,2]
[348002397,1736263885395,-1118.43,0.00011883,2]
[348002398,1736263885406,-509.3,0.00011883,2]
[348002399,1736263885417,-2871.69,0.00011883,2]
[348002400,1736263885433,-615.17,0.00011883,2]
[348002401,1736263885444,-582.87,0.00011883,2]
[348002402,1736263885455,-1115.31,0.00011883,2]
[348002403,1736263885465,-1021.43,0.00011883,2]
[348002404,1736263885475,-500.0,0.00011883,2]
[348002405,1736263885486,-578.36,0.00011883,2]
[348002406,1736263885496,-516.19,0.00011883,2]
[348002407,1736263885506,-1555.21,0.00011883,2]
[348002408,1736263885516,-884.89,0.00011883,2]
[348002409,1736263885527,-500.0,0.00011883,2]
[348002410,1736263885538,-668.69,0.00011883,2]
[348002411,1736263885548,-650.96,0.00011883,2]
[348002412,1736263885558,-581.37,0.00011883,2]
[348002413,1736263885569,-2547.52,0.00011883,2]
[348002414,1736263885580,-985.91,0.00011883,2]
[348002415,1736263885590,-500.0,0.00011883,2]
[348002416,1736263885601,-500.0,0.00011883,2]
[348002417,1736263885612,-684.5,0.00011883,2]
[348002418,1736263885625,-500.0,0.00011883,2]
[348002419,1736263885637,-942.88,0.00011883,2]
[348002420,1736263885648,-1636.98,0.00011883,2]
[348002421,1736263885659,-500.0,0.00011883,2]
[348002422,1736263885670,-4523.36,0.00011883,2]
[348002423,1736263885681,-702.19,0.00011883,2]
[348002424,1736263885692,-3027.15,0.00011883,2]
[348002425,1736263885702,-500.0,0.00011883,2]
[348002426,1736263885712,-500.0,0.00011883,2]
[348002427,1736263885722,-1968.16,0.00011883,2]
[348002428,1736263885732,-984.26,0.00011883,2]
[348002429,1736263885742,-1440.07,0.00011883,2]
[348002430,1736263885752,-2109.75,0.00011883,2]
[348002431,1736263885762,-650.12,0.00011883,2]
[348002432,1736263885775,-631.0,0.00011883,2]
[348002433,1736263885785,-600.1,0.00011883,2]
[348002434,1736263885795,-500.0,0.00011883,2]
[348002435,1736263885805,-649.63,0.00011883,2]
[348002436,1736263885815,-6413.79,0.00011883,2]
[348002437,1736263885826,-500.0,0.00011883,2]
[348002438,1736263885837,-2461.78,0.00011883,2]
[348002439,1736263885847,-1979.41,0.00011883,2]
[348002440,1736263885856,-597.54,0.00011883,2]
[348002441,1736263885866,-500.0,0.00011883,2]
[348002442,1736263885876,-500.0,0.00011883,2]
[348002443,1736263885889,-712.87,0.00011883,2]
[348002444,1736263885899,-500.0,0.00011883,2]
[348002445,1736263885909,-500.0,0.00011883,2]
[348002446,1736263885920,-1002.51,0.00011883,2]
[348002447,1736263885931,-552.42,0.00011883,2]
[348002448,1736263885941,-3266.67,0.00011883,2]
[348002449,1736263885952,-500.0,0.00011883,2]
[348002450,1736263885962,-3614.29,0.00011883,2]
[348002451,1736263885973,-604.64,0.00011883,2]
[348002452,1736263885984,-687.61,0.00011883,2]
[348002453,1736263885994,-500.0,0.00011883,2]
[348002454,1736263886005,-1320.68,0.00011883,2]
[348002455,1736263886015,-2385.14,0.00011883,2]
[348002456,1736263886026,-979.45,0.00011883,2]
[348002457,1736263886037,-500.0,0.00011883,2]
[348002458,1736263886047,-500.0,0.00011883,2]
[348002459,1736263886058,-5903.24,0.00011883,2]
[348002460,1736263886069,-500.0,0.00011883,2]
[348002461,1736263886081,-1534.65,0.00011884,2]
[348002462,1736263886092,-2164.37,0.00011884,2]
[348002463,1736263886102,-1978.2,0.00011884,2]
[348002464,1736263886113,-933.31,0.00011884,2]
[348002465,1736263886123,-2121.86,0.00011884,2]
[348002466,1736263886139,-1439.55,0.00011884,2]
[348002467,1736263886150,-2440.6,0.00011884,2]
[348002468,1736263886162,-2163.32,0.00011884,2]
[348002469,1736263886174,-2806.86,0.00011884,2]
[348002470,1736263886186,-2814.6,0.00011884,2]
[348002471,1736263886198,-3594.7,0.00011884,2]
[348002472,1736263886208,-6153.33,0.00011884,2]
[348002473,1736263886222,-12102.56,0.00011884,2]
[348002474,1736263886233,-288.04,0.00011886,2]
[348002475,1736263886244,-1456.5,0.00011886,2]
[348002476,1736263886258,-1495.29,0.00011886,2]
[348002477,1736263886270,-3653.97,0.00011886,2]
[348002478,1736263886288,-500.0,0.00011886,2]
[348002479,1736263886315,-1502.21,0.00011886,2]
[348002480,1736263886330,-1958.4,0.00011886,2]
[348002481,1736263886341,-786.0,0.00011886,2]
[348002482,1736263886351,-2582.24,0.00011886,2]
[348002483,1736263886361,-1469.08,0.00011886,2]
[348002484,1736263886371,-1837.67,0.00011886,2]
[348002485,1736263886385,-1247.74,0.00011886,2]
[348002486,1736263886396,-4398.53,0.00011886,2]
[348002487,1736263886406,-3587.21,0.00011886,2]
[348002488,1736263886418,-3180.23,0.00011886,2]
[348002489,1736263886429,-3591.59,0.00011886,2]
[348002490,1736263886439,-663.45,0.00011886,2]
[348002491,1736263886451,-5338.56,0.00011886,2]
[348002492,1736263886462,-1222.58,0.00011886,2]
[348002493,1736263886474,-150.0,0.00011899,2]
[348002494,1736263886486,-5000.0,0.000119,2]
[348002495,1736263886497,-14632.70465732,0.000119,2]
[348002496,1736263886509,-1108.48638085,0.000119,2]
[348002497,1736263886519,-13926.33490024,0.000119,2]
[348002498,1736263886530,-502.94,0.00011904,2]
[348002499,1736263886542,-1588.59169286,0.0001191,2]
[348002500,1736263886553,-1500.0,0.00011948,2]
[348002501,1736263886564,-200.0,0.0001195,2]